fUSD/lending_fUSD_20251204
["ID","MTS","AMOUNT","RATE_DAILY","PERIOD"]
[396240375,1764863432346,-300.0,0.00015474,2]
[396240376,1764863432355,-198.33,0.00016029,2]
[396240377,1764863432366,-1432.72,0.00016114,2]
[396240378,1764863432377,-1200.0,0.0001614,2]
[396240379,1764863432388,-200.0,0.00016141,2]
[396240380,1764863432398,-999.0,0.00016275,3]
[396240381,1764863432407,-167.56,0.00016299,2]
[396240382,1764863432417,-200.0,0.00016863,2]
[396240383,1764863432427,-300.0,0.00016863,2]
[396240384,1764863432436,-300.0,0.00016863,2]
[396240385,1764863432446,-200.0,0.00016864,2]
[396240386,1764863432456,-200.0,0.00016864,2]
[396240387,1764863432466,-891.81127783,0.000169,2]
[396240388,1764863432476,-702.98,0.000169,2]
[396240389,1764863432485,-171.84551038,0.000169,2]
[396240390,1764863432496,-1000.0,0.000169,2]
[396240391,1764863432506,-149.49300791,0.000169,2]
[396240392,1764863432518,-1256.46699209,0.000169,2]
[396240393,1764863432528,-234.9361446,0.000169,2]
[396240394,1764863432537,-500.0,0.00016973,2]
[396240395,1764863432547,-161.84150459,0.00016973,2]
[396240396,1764863432557,-500.49464942,0.00016973,2]
[396240397,1764863432567,-1035.896,0.00016973,2]
[396240398,1764863432576,-300.0,0.0001698,2]
[396240399,1764863432587,-1900.0,0.0001698,2]
[396240400,1764863432597,-277.35679052,0.0001698,2]
[396240402,1764863432607,-151.0,0.0001698,2]
[396240404,1764863432617,-500.0,0.0001699,2]
[396240406,1764863432626,-2000.0,0.0001699,2]
[396240408,1764863432636,-500.0,0.0001699,2]
[396240410,1764863432646,-2000.0,0.0001699,2]
[396240412,1764863432656,-500.0,0.0001699,2]
[396240414,1764863432666,-133.19862762,0.0001699,2]
[396240444,1764863432900,-1866.80137238,0.0001699,2]
[396240445,1764863432910,-500.0,0.0001699,2]
[396240446,1764863432919,-500.0,0.0001699,2]
[396240447,1764863432928,-500.0,0.0001699,2]
[396240448,1764863432938,-500.0,0.0001699,2]
[396240449,1764863432947,-500.0,0.0001699,2]
[396240450,1764863432957,-500.0,0.0001699,2]
[396240451,1764863432967,-500.0,0.0001699,2]
[396240452,1764863432976,-500.0,0.0001699,2]
[396240453,1764863432986,-574.12855637,0.0001699,2]
[396240454,1764863432997,-1000.0,0.0001699,2]
[396240455,1764863433006,-1000.0,0.0001699,2]
[396240456,1764863433017,-1000.0,0.0001699,2]
[396240457,1764863433027,-1000.0,0.0001699,2]
[396240458,1764863433037,-1000.0,0.0001699,2]
[396240459,1764863433047,-1000.0,0.0001699,2]
[396240460,1764863433058,-908.77562202,0.0001699,2]
[396240461,1764863433093,-91.22437798,0.0001699,2]
[396240462,1764863433103,-1000.0,0.0001699,2]
[396240463,1764863433112,-1000.0,0.0001699,2]
[396240464,1764863433123,-1000.0,0.0001699,2]
[396240465,1764863433133,-1000.0,0.0001699,2]
[396240466,1764863433143,-151.0,0.0001699,2]
[396240467,1764863433153,-151.0,0.0001699,2]
[396240468,1764863433163,-151.0,0.0001699,2]
[396240469,1764863433173,-500.0,0.0001699,2]
[396240470,1764863433183,-500.0,0.0001699,2]
[396240471,1764863433192,-500.0,0.0001699,2]
[396240472,1764863433202,-500.0,0.0001699,2]
[396240473,1764863433211,-500.0,0.0001699,2]
[396240474,1764863433220,-500.0,0.0001699,2]
[396240475,1764863433229,-358.93157713,0.0001699,2]
[396240476,1764863433239,-150.0,0.0001699,2]
[396240477,1764863433249,-500.0,0.0001699,2]
[396240478,1764863433259,-582.0,0.0001699,2]
[396240479,1764863433268,-500.0,0.0001699,2]
[396240480,1764863433278,-639.38,0.0001699,2]
[396240481,1764863433288,-560.88769773,0.00016993,2]
[396240482,1764863433301,-937.20846293,0.00016993,2]
[396240483,1764863433313,-990.97939,0.00016993,2]
[396240484,1764863433323,-3424.78506904,0.00016993,2]
[396240485,1764863433379,-727.65809693,0.00016993,2]
[396240486,1764863433390,-36.05607737,0.00016993,2]
[396240487,1764863433399,-1963.94392263,0.00016993,2]
[396240491,1764863438309,-170.0,0.00016893,2]
[396240492,1764863438320,-1510.96,0.00016993,2]
[396240493,1764863438359,-3470.23844427,0.00016993,2]
[396240494,1764863438370,-1894.49523153,0.00016993,2]
[396240495,1764863438407,-753.25136983,0.00016993,2]
[396240496,1764863438460,-9401.64,0.00016993,2]
[396240497,1764863438472,-3307.91099469,0.00016993,2]
[396240510,1764863438860,-3039.84169753,0.00016993,2]
[396240512,1764863438873,-2418.07525,0.00016993,2]
[396240514,1764863438884,-44914.26050293,0.00016993,2]
[396240516,1764863438895,-2087.06465,0.00016993,2]
[396240661,1764863440327,-34998.02595499,0.00016993,2]
[396240663,1764863440336,-151.0,0.00016997,2]
[396240665,1764863440346,-151.0,0.00016997,2]
[396240667,1764863440355,-151.0,0.00016997,2]
[396240669,1764863440365,-500.0,0.00016999,2]
[396240671,1764863440374,-464.50619349,0.00016999,2]
[396240673,1764863440383,-510.9486006,0.00016999,2]
[396240675,1764863440393,-500.0,0.00016999,2]
[396240677,1764863440402,-500.0,0.00016999,2]
[396240679,1764863440411,-500.0,0.00016999,2]
[396240681,1764863440420,-500.0,0.00016999,2]
[396240683,1764863440429,-500.0,0.00016999,2]
[396240685,1764863440438,-11940.0,0.00017,2]
[396240687,1764863440448,-966835.57766784,0.00017,2]
[396240692,1764863440489,-907.96447581,0.00017,2]
[396240695,1764863440501,-902.7055161,0.00017,2]
[396240697,1764863440511,-15004.51596528,0.00017,2]
[396240699,1764863440523,-36816.11231199,0.00017,2]
[396240701,1764863440533,-926.19807139,0.00017,2]
[396240703,1764863440544,-819.46019907,0.00017,2]
[396240705,1764863440555,-2777.11440096,0.00017,2]
[396240706,1764863440566,-9119.046566,0.00017,2]
[396240707,1764863440578,-1750.0,0.00017,2]
[396240708,1764863440589,-8590.63879424,0.00017,2]
[396240711,1764863440600,-1859.2772069,0.00017,2]
[396240713,1764863440611,-17236.31098514,0.00017,2]
[396240715,1764863440704,-1268.79471161,0.00017,2]
[396240716,1764863440716,-327.84001672,0.00017,2]
[396240931,1764863451804,-502291.67471198,0.00017,2]
[396240932,1764863451819,-250307.54308565,0.00017,2]
[396240933,1764863452545,-88294.85358492,0.00017,2]
[396240934,1764863453015,-4068.07711445,0.00017,2]
[396240935,1764863453087,-403.492875,0.00017,2]
[396240936,1764863453099,-7725.5466,0.00017,2]
[396240937,1764863818823,150.0,0.00016174,120]
[396240947,1764864156108,297.03631936,0.00021956,30]
[396240949,1764864618076,-166.66,0.00015923,2]
[396240958,1764864631400,-150.0,0.00016075,2]
[396240959,1764864631409,-300.0,0.00016149,2]
[396240960,1764864631419,-578.20924308,0.00016149,2]
[396240961,1764864631429,-150.0,0.00016174,2]
[396240962,1764864631439,-166.66,0.00016258,2]
[396240963,1764864631447,-166.66,0.00016499,2]
[396240964,1764864631456,-166.66,0.00016593,2]
[396240965,1764864631466,-300.0,0.00016599,2]
[396240966,1764864631476,-300.0,0.00016599,2]
[396240967,1764864631485,-1094.60916754,0.00016599,2]
[396240968,1764864631563,-105.39083246,0.00016599,2]
[396240969,1764864631572,-1405.96,0.000166,2]
[396240970,1764864631581,-702.98,0.000166,2]
[396240971,1764864631591,-698.87,0.000166,2]
[396240972,1764864631600,-659.08080956,0.000166,2]
[396240973,1764864631612,-43.89919044,0.000166,2]
[396240974,1764864631622,-600.11131002,0.000166,3]
[396240975,1764864631633,-388.29480477,0.000166,3]
[396240976,1764864631644,-4535.59388521,0.000166,3]
[396240977,1764864631654,-1000.0,0.000167,2]
[396240978,1764864631663,-200.0,0.00016764,2]
[396240979,1764864631672,-142.70286951,0.000168,2]
[396240996,1764864637534,-560.27713049,0.000168,2]
[396240997,1764864637544,-200.0,0.00016864,2]
[396240998,1764864637554,-223.76286751,0.0001688,2]
[396240999,1764864637567,-76.23713249,0.0001688,2]
[396241000,1764864637576,-1900.0,0.0001688,2]
[396241001,1764864637585,-250.06595631,0.0001688,2]
[396241002,1764864637773,-800.97002144,0.0001688,2]
[396241004,1764864637783,-277.35679052,0.0001688,2]
[396241006,1764864637792,-151.0,0.0001689,2]
[396241007,1764864637802,-702.98,0.000169,2]
[396241008,1764864637811,-865.42829817,0.000169,5]
[396241009,1764864637821,-2744.25566807,0.000169,5]
[396241010,1764864637834,-575.09999824,0.000169,5]
[396241011,1764864637865,-1339.21603552,0.000169,5]
[396241012,1764864637875,-425.36781498,0.0001692,2]
[396241013,1764864637884,-166.66,0.00016928,2]
[396241014,1764864637892,-246.0,0.00016968,2]
[396241015,1764864637902,-160.03289921,0.00016973,2]
[396241016,1764864637911,-511.42312177,0.00016973,2]
[396241017,1764864637920,-500.41119506,0.00016973,2]
[396241018,1764864637929,-500.0,0.00016973,2]
[396241019,1764864637938,-50.69539168,0.00016983,2]
[396241020,1764864638015,-161.4835782,0.00016983,2]
[396241021,1764864638026,-574.12855637,0.0001699,2]
[396241022,1764864638036,-14.69185679,0.0001699,2]
[396241023,1764864638047,-136.30814321,0.0001699,2]
[396241024,1764864638058,-247.01505358,0.0001699,2]
[396241031,1764864640730,-252.98494642,0.0001699,2]
[396241032,1764864640740,-500.0,0.0001699,2]
[396241033,1764864640749,-500.0,0.0001699,2]
[396241034,1764864640759,-500.0,0.0001699,2]
[396241035,1764864640770,-500.0,0.0001699,2]
[396241036,1764864640779,-661.50054633,0.0001699,2]
[396241037,1764864640788,-500.0,0.0001699,2]
[396241038,1764864640801,-500.0,0.0001699,2]
[396241039,1764864640811,-500.0,0.0001699,2]
[396241040,1764864640820,-500.0,0.0001699,2]
[396241041,1764864640829,-500.0,0.0001699,2]
[396241042,1764864640838,-500.0,0.0001699,2]
[396241043,1764864640848,-1000.0,0.0001699,2]
[396241044,1764864640857,-1000.0,0.0001699,2]
[396241045,1764864640868,-1000.0,0.0001699,2]
[396241046,1764864640877,-1000.0,0.0001699,2]
[396241047,1764864640886,-1000.0,0.0001699,2]
[396241048,1764864640895,-1000.0,0.0001699,2]
[396241049,1764864640905,-1000.0,0.0001699,2]
[396241050,1764864640915,-1000.0,0.0001699,2]
[396241051,1764864640924,-1000.0,0.0001699,2]
[396241052,1764864640934,-1000.0,0.0001699,2]
[396241053,1764864640943,-1000.0,0.0001699,2]
[396241054,1764864640953,-257.12848464,0.0001699,2]
[396241055,1764864640963,-307.10490823,0.0001699,2]
[396241056,1764864640973,-500.0,0.0001699,3]
[396241057,1764864640982,-150.0,0.0001699,3]
[396241058,1764864640997,-150.0,0.0001699,3]
[396241059,1764864641006,-703.11,0.0001699,2]
[396241060,1764864641017,-201.56637742,0.0001699,2]
[396241061,1764864641027,-150.0,0.0001699,2]
[396241062,1764864641037,-150.0,0.0001699,2]
[396241063,1764864641047,-150.0,0.0001699,2]
[396241064,1764864641057,-500.0,0.0001699,2]
[396241065,1764864641067,-150.0,0.0001699,2]
[396241066,1764864641077,-500.0,0.0001699,2]
[396241067,1764864641087,-150.0,0.0001699,2]
[396241068,1764864641100,-150.0,0.0001699,2]
[396241069,1764864641110,-150.0,0.0001699,2]
[396241070,1764864641120,-150.0,0.0001699,2]
[396241071,1764864641134,-150.0,0.0001699,2]
[396241072,1764864641144,-282.42341906,0.0001699,2]
[396241073,1764864641153,-150.0,0.0001699,2]
[396241074,1764864641163,-150.0,0.0001699,2]
[396241075,1764864641174,-557.0,0.0001699,2]
[396241076,1764864641184,-150.0,0.0001699,2]
[396241077,1764864641197,-150.0,0.0001699,2]
[396241078,1764864641207,-558.44867896,0.0001699,2]
[396241079,1764864641217,-3029.72,0.0001699,2]
[396241080,1764864641227,-3029.72,0.0001699,2]
[396241081,1764864641237,-161.32,0.0001699,3]
[396241082,1764864641248,-1000.0,0.00016999,2]
[396241083,1764864641259,-306.5509394,0.00016999,2]
[396241084,1764864641269,-464.50619349,0.00016999,2]
[396241085,1764864641279,-500.0,0.00016999,2]
[396241086,1764864641289,-510.9486006,0.00016999,2]
[396241087,1764864641299,-500.0,0.00016999,2]
[396241088,1764864641309,-500.0,0.00016999,2]
[396241089,1764864641319,-500.0,0.00016999,2]
[396241090,1764864641329,-500.0,0.00016999,2]
[396241091,1764864641339,-500.0,0.00016999,2]
[396241092,1764864641349,-228.250005,0.00016999,2]
[396241093,1764864641358,-6635.08332348,0.00017,2]
[396241094,1764864641371,-16082.82752749,0.00017,2]
[396241095,1764864641386,-950.93295398,0.00017,2]
[396241096,1764864641397,-512.14784993,0.00017,2]
[396241097,1764864641712,-418595.40692379,0.00017,2]
[396241098,1764864641722,-2000.0,0.00017,2]
[396241099,1764864641733,-2055.0541279,0.00017,2]
[396241100,1764864641743,-200.0,0.00017,2]
[396241101,1764864641755,-702.98,0.00017,2]
[396241102,1764864641764,-27494.3454067,0.00017,2]
[396241103,1764864641773,-1027.158,0.00017,2]
[396241104,1764864641783,-198.96894634,0.00017,2]
[396241105,1764864641792,-151.0,0.00017,2]
[396241106,1764864641801,-250.0,0.00017,2]
[396241107,1764864641813,-151.0,0.00017,2]
[396241108,1764864641823,-1822.4252061,0.00017,2]
[396241109,1764864641834,-166.66,0.00017044,2]
[396241110,1764864641852,-500.0,0.00017047,2]
[396241111,1764864641862,-500.0,0.00017127,3]
[396241112,1764864641871,-150.0,0.00017127,3]
[396241113,1764864641880,-150.0,0.00017127,3]
[396241114,1764864641889,-274.41995236,0.00017127,2]
[396241115,1764864641898,-150.0,0.00017127,2]
[396241116,1764864641907,-150.0,0.00017127,2]
[396241117,1764864641917,-500.0,0.00017127,2]
[396241118,1764864641926,-496.06477237,0.00017127,2]
[396241119,1764864641935,-150.0,0.00017127,2]
[396241120,1764864641945,-150.0,0.00017127,2]
[396241121,1764864641955,-150.0,0.00017127,2]
[396241122,1764864641964,-150.0,0.00017127,2]
[396241123,1764864641974,-150.0,0.00017127,2]
[396241124,1764864641983,-557.0,0.00017127,2]
[396241125,1764864641995,-150.0,0.00017127,2]
[396241126,1764864642006,-150.0,0.00017127,2]
[396241127,1764864642020,-200.0,0.0001717,2]
[396241128,1764864642029,-774.0,0.00017184,2]
[396241129,1764864642039,-774.0,0.00017215,2]
[396241130,1764864642049,-774.0,0.00017253,2]
[396241131,1764864642059,-774.0,0.00017256,2]
[396241132,1764864642069,-166.66,0.00017264,2]
[396241133,1764864642079,-200.0,0.00017264,3]
[396241134,1764864642089,-150.0,0.00017264,3]
[396241135,1764864642103,-150.0,0.00017264,3]
[396241136,1764864642112,-150.0,0.00017264,2]
[396241137,1764864642122,-500.0,0.00017264,2]
[396241138,1764864642132,-150.0,0.00017264,2]
[396241139,1764864642142,-150.0,0.00017264,2]
[396241140,1764864642152,-150.0,0.00017264,2]
[396241141,1764864642162,-150.0,0.00017264,2]
[396241142,1764864642173,-557.0,0.00017264,2]
[396241143,1764864642183,-150.0,0.00017264,2]
[396241144,1764864642193,-150.0,0.00017264,2]
[396241145,1764864642203,-703.11,0.00017264,2]
[396241146,1764864642213,-1000.0,0.000173,2]
[396241147,1764864642223,-200.0,0.00017342,2]
[396241148,1764864642233,-785.0,0.00017352,2]
[396241149,1764864642242,-774.0,0.00017367,2]
[396241150,1764864642251,-150.0,0.00017401,3]
[396241151,1764864642260,-150.0,0.00017401,3]
[396241152,1764864642270,-150.0,0.00017401,2]
[396241153,1764864642279,-500.0,0.00017401,2]
[396241154,1764864642289,-150.0,0.00017401,2]
[396241155,1764864642298,-150.0,0.00017401,2]
[396241156,1764864642307,-150.0,0.00017401,2]
[396241157,1764864642316,-150.0,0.00017401,2]
[396241158,1764864642326,-557.0,0.00017401,2]
[396241159,1764864642335,-252.54455981,0.00017401,2]
[396241160,1764864642344,-150.0,0.00017401,2]
[396241161,1764864642353,-1900.0,0.00017428,2]
[396241162,1764864642362,-846.81,0.00017479,2]
[396241163,1764864642371,-200.37133427,0.00017515,2]
[396241164,1764864642381,-336.9640028,0.00017515,2]
[396241165,1764864642390,-263.50313685,0.00017515,2]
[396241166,1764864642399,-774.0,0.0001753,2]
[396241167,1764864642408,-616.61406955,0.00017538,2]
[396241168,1764864642418,-150.0,0.00017538,3]
[396241169,1764864642428,-150.0,0.00017538,3]
[396241170,1764864642437,-150.0,0.00017538,2]
[396241171,1764864642446,-500.0,0.00017538,2]
[396241172,1764864642455,-150.0,0.00017538,2]
[396241173,1764864642464,-250.0,0.00017538,2]
[396241174,1764864642473,-150.0,0.00017538,2]
[396241175,1764864642483,-150.0,0.00017538,2]
[396241176,1764864642493,-557.0,0.00017538,2]
[396241177,1764864642502,-150.0,0.00017538,2]
[396241178,1764864642511,-703.11,0.00017538,2]
[396241179,1764864642520,-774.0,0.00017546,2]
[396241180,1764864642529,-774.0,0.00017559,2]
[396241181,1764864642539,-166.66,0.00017588,2]
[396241182,1764864642548,-166.66,0.00017599,2]
[396241183,1764864642559,-774.0,0.00017633,2]
[396241184,1764864642568,-774.0,0.0001767,2]
[396241185,1764864642578,-250.0,0.00017675,3]
[396241186,1764864642588,-250.0,0.00017675,3]
[396241187,1764864642597,-250.0,0.00017675,2]
[396241188,1764864642608,-500.0,0.00017675,2]
[396241189,1764864642618,-250.0,0.00017675,2]
[396241190,1764864642629,-250.0,0.00017675,2]
[396241191,1764864642644,-250.0,0.00017675,2]
[396241192,1764864642653,-557.0,0.00017675,2]
[396241193,1764864642662,-160.0,0.00017675,2]
[396241194,1764864642671,-960.12,0.00017699,2]
[396241195,1764864642680,-480.06,0.00017699,2]
[396241196,1764864642689,-480.06,0.00017699,2]
[396241197,1764864642699,-480.06,0.00017699,2]
[396241198,1764864642708,-480.06,0.00017699,2]
[396241199,1764864642718,-480.06,0.00017699,2]
[396241200,1764864642727,-480.06,0.00017699,2]
[396241201,1764864642736,-480.06,0.00017699,2]
[396241202,1764864642746,-480.06,0.00017699,2]
[396241203,1764864642755,-480.06,0.00017699,2]
[396241204,1764864642767,-774.0,0.00017704,2]
[396241205,1764864642776,-774.0,0.00017721,2]
[396241206,1764864642785,-500.0,0.00017812,2]
[396241207,1764864642795,-557.0,0.00017812,2]
[396241208,1764864642804,-703.11,0.00017812,2]
[396241209,1764864642813,-774.0,0.00017847,2]
[396241210,1764864642822,-774.0,0.00017879,2]
[396241211,1764864642831,-151.0,0.00017897,2]
[396241212,1764864642840,-1000.0,0.000179,2]
[396241213,1764864642849,-1000.0,0.000179,2]
[396241214,1764864642859,-1006.0,0.000179,2]
[396241215,1764864642867,-1000.0,0.000179,2]
[396241216,1764864642877,-240.1880196,0.0001793,2]
[396241217,1764864642886,-176.30602909,0.0001793,2]
[396241218,1764864642895,-774.0,0.00017936,2]
[396241219,1764864642904,-500.0,0.00017949,2]
[396241220,1764864642914,-557.0,0.00017949,2]
[396241221,1764864642923,-1900.0,0.00017976,2]
[396241222,1764864642932,-215.56672732,0.0001799,2]
[396241223,1764864642942,-151.0,0.00017997,2]
[396241224,1764864642951,-151.0,0.00017997,2]
[396241225,1764864642961,-151.0,0.00017997,2]
[396241226,1764864642970,-594.84915737,0.00017999,2]
[396241227,1764864642979,-500.0,0.00017999,2]
[396241228,1764864642989,-451.63519992,0.00017999,2]
[396241229,1764864642999,-500.0,0.00017999,2]
[396241230,1764864643009,-500.0,0.00017999,2]
[396241231,1764864643019,-500.0,0.00017999,2]
[396241232,1764864643034,-500.0,0.00017999,2]
[396241233,1764864643045,-500.0,0.00017999,2]
[396241234,1764864643056,-500.0,0.00017999,2]
[396241235,1764864643066,-500.0,0.00017999,2]
[396241236,1764864643076,-500.0,0.00017999,2]
[396241237,1764864643086,-500.0,0.00017999,2]
[396241238,1764864643099,-500.0,0.00017999,2]
[396241239,1764864643112,-500.0,0.00017999,2]
[396241241,1764864643123,-500.0,0.00017999,2]
[396241242,1764864643134,-500.0,0.00017999,2]
[396241243,1764864643144,-500.0,0.00017999,2]
[396241244,1764864643154,-500.0,0.00017999,2]
[396241245,1764864643163,-500.0,0.00017999,2]
[396241246,1764864643174,-500.0,0.00017999,2]
[396241247,1764864643184,-500.0,0.00017999,2]
[396241248,1764864643194,-500.0,0.00017999,2]
[396241249,1764864643204,-500.0,0.00017999,2]
[396241250,1764864643213,-500.0,0.00017999,2]
[396241251,1764864643224,-500.0,0.00017999,2]
[396241252,1764864643233,-500.0,0.00017999,2]
[396241253,1764864643243,-500.0,0.00017999,2]
[396241254,1764864643253,-500.0,0.00017999,2]
[396241255,1764864643263,-500.0,0.00017999,2]
[396241256,1764864643272,-500.0,0.00017999,2]
[396241257,1764864643283,-500.0,0.00017999,2]
[396241260,1764864643292,-500.0,0.00017999,2]
[396241263,1764864643301,-500.0,0.00017999,2]
[396241264,1764864643312,-500.0,0.00017999,2]
[396241265,1764864643321,-500.0,0.00017999,2]
[396241266,1764864643331,-500.0,0.00017999,2]
[396241267,1764864643341,-500.0,0.00017999,2]
[396241268,1764864643351,-500.0,0.00017999,2]
[396241269,1764864643361,-500.0,0.00017999,2]
[396241270,1764864643371,-357.28356466,0.00017999,2]
[396241271,1764864643380,-68957.98581717,0.00018,2]
[396241272,1764864643390,-887.27272926,0.00018,2]
[396241273,1764864643400,-1183.49453852,0.00018,2]
[396241274,1764864643409,-1000.0,0.00018,2]
[396241275,1764864643419,-1000.0,0.00018,2]
[396241276,1764864643428,-420681.21619517,0.00018,2]
[396241280,1764864645399,-480.06,0.00017699,2]
[396241281,1764864645408,-956013.04622838,0.00018,2]
[396241282,1764864645419,-4027.43118354,0.00018,2]
[396241283,1764864645445,-151.0,0.00017546,2]
[396241284,1764864645455,-33256.98211621,0.00018,2]
[396241285,1764864645469,-446211.80264072,0.00018,2]
[396241286,1764864645481,-97662.19398232,0.00018,2]
[396241287,1764864645492,-151.0,0.00018,2]
[396241288,1764864645502,-261.23,0.0001803,2]
[396241289,1764864645511,-774.0,0.00018038,2]
[396241290,1764864645522,-774.0,0.00018066,2]
[396241291,1764864645532,-1000.0,0.00018082,2]
[396241292,1764864645544,-774.0,0.00018085,2]
[396241293,1764864645554,-500.0,0.00018086,2]
[396241294,1764864645564,-557.0,0.00018086,2]
[396241295,1764864645573,-703.11,0.00018086,2]
[396241296,1764864645583,-1769.01601649,0.000181,2]
[396241297,1764864645592,-774.0,0.00018119,2]
[396241298,1764864645601,-166.66,0.00018133,2]
[396241299,1764864645611,-420.0,0.00018137,2]
[396241300,1764864645620,-610.32495527,0.00018192,2]
[396241301,1764864645630,-500.0,0.00018223,2]
[396241302,1764864645639,-557.0,0.00018223,2]
[396241303,1764864645648,-1200.0,0.00018228,2]
[396241304,1764864645657,-774.0,0.00018232,2]
[396241305,1764864645667,-240.18949916,0.00018249,2]
[396241306,1764864645676,-287.61899177,0.00018249,2]
[396241307,1764864645685,-1000.0,0.00018289,2]
[396241308,1764864645694,-167.56,0.00018337,2]
[396241309,1764864645703,-87966.54,0.00018356,2]
[396241310,1764864645713,-645.08504534,0.0001836,2]
[396241311,1764864645722,-557.0,0.0001836,2]
[396241312,1764864645731,-703.11,0.0001836,2]
[396241313,1764864645740,-774.0,0.00018412,2]
[396241314,1764864645750,-158.91587479,0.00018413,2]
[396241315,1764864645759,-774.0,0.00018419,2]
[396241316,1764864645768,-480.06109419,0.00018463,2]
[396241317,1764864645778,-557.0,0.00018497,2]
[396241318,1764864645787,-150.9,0.000185,2]
[396241319,1764864645796,-151.0,0.000185,2]
[396241320,1764864645805,-1900.0,0.00018524,2]
[396241321,1764864645815,-189.6130977,0.00018571,2]
[396241322,1764864645824,-1237.35336012,0.00018618,2]
[396241323,1764864645833,-500.0,0.00018633,2]
[396241324,1764864645842,-557.0,0.00018634,2]
[396241325,1764864645851,-703.11,0.00018634,2]
[396241326,1764864645860,-480.06,0.00018658,2]
[396241327,1764864645869,-166.66,0.00018678,2]
[396241328,1764864645879,-1000.0,0.0001876,2]
[396241329,1764864645888,-557.0,0.00018771,2]
[396241330,1764864645898,-150.83,0.000188,2]
[396241331,1764864645907,-150.83,0.000188,2]
[396241332,1764864645916,-150.83,0.000188,2]
[396241333,1764864645925,-150.83,0.000188,2]
[396241334,1764864645934,-846.81,0.00018849,2]
[396241335,1764864645943,-11937.0,0.0001889,2]
[396241336,1764864645953,-1473.74600839,0.0001889,2]
[396241337,1764864645963,-557.0,0.00018908,2]
[396241338,1764864645972,-703.14,0.00018908,2]
[396241339,1764864645982,-6510.0,0.00018964,2]
[396241341,1764864645992,-5139.59421298,0.00019,2]
[396241343,1764864646001,-300.0,0.00019,2]
[396241345,1764864646010,-413.78442502,0.00019,2]
[396241347,1764864646019,-480.06,0.00019041,2]
[396241348,1764864646028,-480.06,0.00019041,2]
[396241350,1764864646037,-480.06,0.00019041,2]
[396241359,1764864646158,-480.06,0.00019041,2]
[396241360,1764864646206,-480.06,0.00019041,2]
[396241361,1764864646215,-480.06,0.00019041,2]
[396241362,1764864646225,-480.06,0.00019041,2]
[396241363,1764864646235,-480.06,0.00019041,2]
[396241364,1764864646244,-480.06,0.00019041,2]
[396241365,1764864646254,-480.06,0.00019041,2]
[396241366,1764864646263,-480.06,0.00019041,2]
[396241367,1764864646273,-480.06,0.00019041,2]
[396241368,1764864646283,-480.06,0.00019041,2]
[396241369,1764864646294,-480.06,0.00019041,2]
[396241370,1764864646304,-480.06,0.00019041,2]
[396241371,1764864646313,-480.06,0.00019041,2]
[396241372,1764864646322,-480.06,0.00019041,2]
[396241373,1764864646332,-480.06,0.00019041,2]
[396241374,1764864646342,-480.06,0.00019041,2]
[396241375,1764864646351,-480.06,0.00019041,2]
[396241376,1764864646361,-480.06,0.00019041,2]
[396241377,1764864646370,-480.06,0.00019041,2]